fUST/lending_fUST_20240910
["ID","MTS","AMOUNT","RATE_DAILY","PERIOD"]
[337694517,1725966656212,-227.40233418,0.00019974,2]
[337694518,1725966656225,-500.0,0.00019974,2]
[337694519,1725966656236,-669.86,0.00019974,2]
[337694520,1725966656246,-603.15,0.00019974,2]
[337694521,1725966656255,-1814.4,0.00019974,2]
[337694522,1725966656265,-519.42688994,0.00019974,2]
[337694523,1725966656274,-500.0,0.00019974,2]
[337694524,1725966656283,-500.0,0.00019974,2]
[337694525,1725966656293,-525.85,0.00019974,2]
[337694526,1725966656302,-500.0,0.00019974,2]
[337694527,1725966656312,-500.0,0.00019974,2]
[337694528,1725966656324,-374.00637108,0.00019974,2]
[337694529,1725966656335,-500.0,0.00019974,2]
[337694530,1725966656345,-696.28,0.00019974,2]
[337694531,1725966656354,-500.0,0.00019974,2]
[337694532,1725966656364,-1140.1,0.00019974,2]
[337694533,1725966656375,-500.0,0.00019974,2]
[337694534,1725966656385,-500.0,0.00019974,2]
[337694535,1725966656397,-869.84,0.00019974,2]
[337694536,1725966656409,-43222.49,0.00019974,2]
[337694537,1725966656419,-500.0,0.00019974,2]
[337694538,1725966656430,-500.0,0.00019974,2]
[337694539,1725966656440,-500.0,0.00019974,2]
[337694540,1725966656451,-500.0,0.00019974,2]
[337694541,1725966656461,-500.0,0.00019974,2]
[337694542,1725966656470,-732.04,0.00019974,2]
[337694543,1725966656479,-500.0,0.00019974,2]
[337694544,1725966656489,-500.0,0.00019974,2]
[337694545,1725966656498,-500.0,0.00019974,2]
[337694546,1725966656508,-500.0,0.00019974,2]
[337694547,1725966656517,-578.57,0.00019974,2]
[337694548,1725966656526,-500.0,0.00019974,2]
[337694549,1725966656536,-552.4,0.00019974,2]
[337694550,1725966656545,-500.0,0.00019974,2]
[337694551,1725966656554,-577.43,0.00019974,2]
[337694552,1725966656563,-784.06,0.00019974,2]
[337694553,1725966656572,-635.590118,0.00019974,2]
[337694554,1725966656581,-500.0,0.00019974,2]
[337694555,1725966656591,-500.0,0.00019974,2]
[337694556,1725966656600,-500.0,0.00019975,2]
[337694557,1725966656610,-500.0,0.00019975,2]
[337694558,1725966656619,-500.0,0.00019975,2]
[337694559,1725966656629,-500.0,0.00019975,2]
[337694560,1725966656639,-500.0,0.00019975,2]
[337694561,1725966656648,-500.0,0.00019975,2]
[337694562,1725966656658,-767.31,0.00019975,2]
[337694563,1725966656667,-500.0,0.00019975,2]
[337694564,1725966656676,-506.24,0.00019975,2]
[337694565,1725966656686,-184.399387,0.00019975,2]
[337694566,1725966656697,-184.399387,0.00019975,2]
[337694567,1725966656706,-978.6,0.00019975,2]
[337694568,1725966656715,-500.0,0.00019975,2]
[337694569,1725966656725,-916.01,0.00019975,2]
[337694570,1725966656735,-500.0,0.00019975,2]
[337694571,1725966656745,-500.0,0.00019975,2]
[337694572,1725966656755,-1134.0,0.00019975,2]
[337694573,1725966656764,-151.0,0.00019975,2]
[337694574,1725966656774,-500.0,0.00019975,2]
[337694575,1725966656783,-1022.88,0.00019975,2]
[337694576,1725966656794,-960.96,0.00019975,2]
[337694577,1725966656804,-500.0,0.00019975,2]
[337694578,1725966656814,-500.0,0.00019975,2]
[337694579,1725966656823,-814.9,0.00019975,2]
[337694580,1725966656836,-500.0,0.00019975,2]
[337694581,1725966656845,-734.44,0.00019975,2]
[337694582,1725966656854,-1924.69,0.00019975,2]
[337694583,1725966656863,-2093.44,0.00019975,2]
[337694584,1725966656873,-500.0,0.00019975,2]
[337694585,1725966656882,-500.0,0.00019975,2]
[337694586,1725966656891,-500.0,0.00019975,2]
[337694587,1725966656902,-1293.28,0.00019975,2]
[337694588,1725966656913,-500.0,0.00019975,2]
[337694589,1725966656922,-890.3,0.00019975,2]
[337694590,1725966656931,-552.61946,0.00019975,2]
[337694591,1725966656940,-909.92,0.00019975,2]
[337694592,1725966656953,-407.14117254,0.00019975,2]
[337694593,1725966656968,-1962.64,0.00019975,2]
[337694594,1725966656977,-455.72541238,0.00019975,2]
[337694608,1725967108949,-300.0,0.00017808,2]
[337694610,1725967139682,-50.245186,0.00017808,2]
[337694611,1725967139706,-299.754814,0.00018904,2]
[337694694,1725967838066,-379.000641,0.00017808,2]
[337694695,1725967838077,-300.0,0.00018904,2]
[337694696,1725967838087,-1270.87973649,0.00018905,2]
[337694697,1725967840087,-1740.95454585,0.00018905,2]
[337694699,1725967840469,-8548.46408833,0.00018905,2]
[337694700,1725967840480,-11560.29837067,0.00019405,2]
[337694701,1725967840489,-254.42907723,0.00019595,2]
[337694702,1725967840499,-254.42907722,0.00019596,2]
[337694703,1725967840509,-254.42907722,0.00019596,2]
[337694704,1725967840518,-1000.0,0.00019597,2]
[337694705,1725967840528,-500.0,0.00019673,2]
[337694706,1725967840537,-500.0,0.00019673,2]
[337694707,1725967840547,-500.0,0.00019673,2]
[337694708,1725967840557,-500.0,0.00019673,2]
[337694709,1725967840567,-500.0,0.00019673,2]
[337694710,1725967840578,-500.0,0.00019673,2]
[337694711,1725967840588,-500.0,0.00019673,2]
[337694712,1725967840598,-500.0,0.00019673,2]
[337694713,1725967840609,-500.0,0.00019673,2]
[337694714,1725967840621,-2811.59,0.00019694,2]
[337694715,1725967840631,-6137.04,0.00019694,2]
[337694716,1725967840641,-1178.4,0.00019694,2]
[337694717,1725967840651,-1368.76,0.00019694,2]
[337694718,1725967840662,-1389.12,0.00019694,2]
[337694719,1725967840672,-1124.81,0.00019694,2]
[337694720,1725967840682,-500.0,0.00019694,2]
[337694721,1725967840691,-500.0,0.00019694,2]
[337694722,1725967840702,-500.0,0.00019694,2]
[337694723,1725967840713,-500.0,0.00019694,2]
[337694724,1725967840724,-164.94498241,0.00019694,2]
[337694725,1725967840735,-500.0,0.00019694,2]
[337694726,1725967840746,-500.0,0.00019694,2]
[337694727,1725967840757,-500.0,0.00019694,2]
[337694728,1725967840768,-500.0,0.00019694,2]
[337694729,1725967840777,-500.0,0.00019694,2]
[337694730,1725967840787,-500.0,0.00019694,2]
[337694731,1725967840796,-500.0,0.00019694,2]
[337694732,1725967840805,-500.0,0.00019694,2]
[337694733,1725967840815,-500.0,0.00019694,2]
[337694734,1725967840825,-500.0,0.00019694,2]
[337694735,1725967840835,-500.0,0.00019694,2]
[337694736,1725967840845,-500.0,0.00019694,2]
[337694737,1725967840855,-500.0,0.00019694,2]
[337694738,1725967840865,-500.0,0.00019694,2]
[337694739,1725967840876,-577.80067152,0.00019694,2]
[337694740,1725967840886,-500.0,0.00019694,2]
[337694741,1725967840897,-500.0,0.00019694,2]
[337694742,1725967840906,-500.0,0.00019694,2]
[337694743,1725967840916,-500.0,0.00019694,2]
[337694744,1725967840927,-506.34624746,0.00019694,2]
[337694745,1725967840937,-500.0,0.00019695,2]
[337694746,1725967840947,-7932.21,0.00019695,2]
[337694747,1725967840958,-4454.33,0.00019695,2]
[337694748,1725967840968,-998.07,0.00019695,2]
[337694749,1725967840977,-605.27,0.00019695,2]
[337694750,1725967840987,-4110.61,0.00019695,2]
[337694751,1725967841000,-1384.72,0.00019695,2]
[337694752,1725967841009,-354.39716057,0.00019695,2]
[337694753,1725967841019,-788.79,0.00019695,2]
[337694754,1725967841029,-500.0,0.00019695,2]
[337694755,1725967841038,-1166.64,0.00019695,2]
[337694756,1725967841047,-500.0,0.00019695,2]
[337694757,1725967841057,-1560.48,0.00019695,2]
[337694758,1725967841066,-500.0,0.00019695,2]
[337694759,1725967841076,-500.0,0.00019695,2]
[337694760,1725967841086,-2096.74,0.00019695,2]
[337694761,1725967841095,-53585.53,0.00019695,2]
[337694762,1725967841104,-1886.81,0.00019695,2]
[337694763,1725967841113,-2034.29,0.00019695,2]
[337694764,1725967841123,-2330.72,0.00019695,2]
[337694765,1725967841132,-24053.62110117,0.00019696,3]
[337694766,1725967841142,-500.0,0.00019696,2]
[337694767,1725967841152,-500.0,0.00019696,2]
[337694768,1725967841161,-500.0,0.00019696,2]
[337694769,1725967841170,-500.0,0.00019696,2]
[337694770,1725967841179,-500.0,0.00019696,2]
[337694771,1725967841189,-500.0,0.00019696,2]
[337694772,1725967841198,-1298.83,0.00019696,2]
[337694773,1725967841208,-816.28,0.00019696,2]
[337694774,1725967841217,-500.0,0.00019696,2]
[337694775,1725967841226,-510.21552978,0.00019696,2]
[337694776,1725967841236,-669.8,0.00019696,2]
[337694777,1725967841246,-500.0,0.00019696,2]
[337694778,1725967841257,-552.06,0.00019696,2]
[337694779,1725967841271,-500.0,0.00019696,2]
[337694780,1725967841280,-500.0,0.00019696,2]
[337694781,1725967841290,-500.0,0.00019696,2]
[337694782,1725967841299,-501.74265565,0.00019696,2]
[337694783,1725967841309,-1552.82,0.00019696,2]
[337694784,1725967841318,-500.0,0.00019696,2]
[337694785,1725967841327,-500.0,0.00019696,2]
[337694786,1725967841337,-254.89578595,0.00019696,2]
[337694787,1725967841347,-500.0,0.00019696,2]
[337694788,1725967841358,-507.94989365,0.00019696,2]
[337694789,1725967841368,-500.0,0.00019696,2]
[337694790,1725967841379,-500.0,0.00019696,2]
[337694791,1725967841390,-510.23244367,0.00019696,2]
[337694792,1725967841401,-500.0,0.00019696,2]
[337694793,1725967841412,-500.0,0.00019696,2]
[337694794,1725967841422,-1427.56,0.00019696,2]
[337694795,1725967841433,-1233.72,0.00019696,2]
[337694796,1725967841444,-500.82,0.00019696,2]
[337694797,1725967841455,-500.0,0.00019696,2]
[337694798,1725967841470,-500.0,0.00019696,2]
[337694799,1725967841479,-1067.34,0.00019696,2]
[337694800,1725967841489,-500.0,0.00019696,2]
[337694801,1725967841499,-500.0,0.00019696,2]
[337694802,1725967841510,-500.0,0.00019696,2]
[337694803,1725967841521,-500.0,0.00019696,2]
[337694804,1725967841532,-500.0,0.00019696,2]
[337694805,1725967841543,-1010.46,0.00019696,2]
[337694806,1725967841554,-942.33,0.00019696,2]
[337694807,1725967841565,-636.52,0.00019696,2]
[337694808,1725967841574,-1649.27,0.00019696,2]
[337694809,1725967841583,-590.4,0.00019696,2]
[337694810,1725967841779,-505.4596711,0.00019696,2]
[337694811,1725967841789,-500.0,0.00019696,2]
[337694812,1725967841799,-357.23092367,0.00019696,2]
[337694813,1725967841808,-500.0,0.00019696,2]
[337694814,1725967841817,-217.01078478,0.00019696,2]
[337694815,1725967841827,-500.0,0.00019696,2]
[337694816,1725967841836,-500.0,0.00019696,2]
[337694817,1725967841846,-500.0,0.00019696,2]
[337694818,1725967841856,-500.0,0.00019696,2]
[337694819,1725967841865,-500.0,0.00019696,2]
[337694820,1725967841876,-500.0,0.00019696,2]
[337694821,1725967841889,-380.1673323,0.00019696,2]
[337694822,1725967841900,-500.0,0.00019696,2]
[337694823,1725967841912,-1573.33,0.00019696,2]
[337694824,1725967841923,-500.0,0.00019696,2]
[337694825,1725967841933,-500.0,0.00019696,2]
[337694826,1725967841942,-500.0,0.00019696,2]
[337694827,1725967841951,-550.0,0.00019696,2]
[337694828,1725967841961,-787.91306919,0.00019696,2]
[337695031,1725969032999,-300.0,0.00017807,2]
[337695032,1725969033011,-704.25000015,0.00017808,2]
[337695076,1725969038392,-2921.96903471,0.00017808,2]
[337695191,1725969040335,-6103.61032099,0.00017808,2]
[337695193,1725969040345,-350.245186,0.00017808,2]
[337695195,1725969040354,-162.728221,0.00018125,2]
[337695197,1725969040364,-162.728221,0.00018131,2]
[337695199,1725969040375,-162.728221,0.00018136,2]
[337695201,1725969040384,-162.728221,0.00018141,2]
[337695203,1725969040394,-162.728221,0.00018147,2]
[337695205,1725969040403,-162.728221,0.00018152,2]
[337695207,1725969040414,-162.728221,0.00018157,2]
[337695209,1725969040423,-162.728221,0.00018163,2]
[337695211,1725969040433,-162.728221,0.00018168,2]
[337695213,1725969040443,-162.728221,0.00018173,2]
[337695215,1725969040453,-162.728221,0.00018179,2]
[337695217,1725969040462,-162.728221,0.00018184,2]
[337695219,1725969040473,-162.728221,0.00018189,2]
[337695221,1725969040483,-162.728221,0.00018195,2]
[337695222,1725969040493,-162.728221,0.000182,2]
[337695223,1725969040502,-162.728221,0.00018206,2]
[337695224,1725969040511,-162.728221,0.00018211,2]
[337695225,1725969040522,-162.728221,0.00018216,2]
[337695226,1725969040532,-166.666667,0.00018509,2]
[337695227,1725969040542,-186.5860813,0.0001864,2]
[337695229,1725969040551,-3853.43279,0.00018905,2]
[337695231,1725969040561,-208.3247076,0.00018978,2]
[337695233,1725969040570,-166.666667,0.00018991,2]
[337695235,1725969040580,-2003.61200453,0.00019,2]
[337695237,1725969040590,-7706.86558,0.00019405,2]
[337695239,1725969040600,-166.666667,0.00019473,2]
[337695241,1725969040610,-1614.880446,0.000195,2]
[337695243,1725969040620,-153.0,0.000195,2]
[337695245,1725969040632,-416.6494152,0.000195,2]
[337695247,1725969040642,-208.3247076,0.000195,2]
[337695249,1725969040651,-6094.54946522,0.00019545,2]
[337695251,1725969040664,-40.58960162,0.00019545,2]
[337695253,1725969040674,-254.42907723,0.00019573,2]
[337695255,1725969040684,-254.42907722,0.00019582,2]
[337695256,1725969040693,-420.0,0.00019588,2]
[337695258,1725969040706,-200.85000003,0.00019591,2]
[337695260,1725969040716,-254.42907722,0.00019591,2]
[337695262,1725969040726,-200.85000003,0.00019592,2]
[337695264,1725969040736,-1000.0,0.00019593,2]
[337695265,1725969040746,-3169.19888505,0.00019593,2]
[337695267,1725969040756,-200.85000003,0.00019594,2]
[337695269,1725969040766,-200.85000003,0.00019595,2]
[337695271,1725969040777,-200.85000003,0.00019596,2]
[337695273,1725969040787,-2811.59,0.00019672,2]
[337695274,1725969040797,-6137.04,0.00019672,2]
[337695276,1725969040816,-1178.4,0.00019672,2]
[337695278,1725969040826,-1368.76,0.00019672,2]
[337695280,1725969040836,-1124.81,0.00019672,2]
[337695281,1725969040845,-500.0,0.00019673,2]
[337695283,1725969040854,-160.83567434,0.00019673,2]
[337695285,1725969040864,-500.0,0.00019673,2]
[337695287,1725969040875,-500.0,0.00019673,2]
[337695289,1725969040885,-500.0,0.00019673,2]
[337695290,1725969040895,-500.0,0.00019673,2]
[337695292,1725969040906,-500.0,0.00019673,2]
[337695294,1725969040916,-500.0,0.00019673,2]
[337695295,1725969040927,-500.0,0.00019673,2]
[337695296,1725969040937,-500.0,0.00019673,2]
[337695297,1725969040947,-500.0,0.00019673,2]
[337695298,1725969040957,-500.0,0.00019673,2]
[337695299,1725969040967,-500.0,0.00019673,2]
[337695300,1725969040978,-150.0,0.00019685,2]
[337695301,1725969040988,-1389.12,0.00019689,2]
[337695302,1725969040999,-928.74,0.00019689,2]
[337695303,1725969041009,-500.0,0.00019689,2]
[337695304,1725969041019,-500.0,0.00019689,2]
[337695305,1725969041029,-500.0,0.00019689,2]
[337695306,1725969041039,-500.0,0.00019689,2]
[337695307,1725969041050,-164.94498241,0.00019689,2]
[337695308,1725969041060,-500.0,0.00019689,2]
[337695309,1725969041070,-155.53388557,0.00019689,2]
[337695310,1725969041080,-500.0,0.00019689,2]
[337695311,1725969041090,-500.0,0.00019689,2]
[337695312,1725969041101,-500.0,0.00019689,2]
[337695313,1725969041112,-500.0,0.00019689,2]
[337695314,1725969041122,-500.0,0.00019689,2]
[337695315,1725969041132,-618.32532387,0.00019689,2]
[337695316,1725969041142,-500.0,0.00019689,2]
[337695317,1725969041153,-389.18665873,0.00019689,2]
[337695318,1725969041163,-500.0,0.00019689,2]
[337695319,1725969041173,-322.5,0.00019689,2]
[337695320,1725969041183,-500.0,0.00019689,2]
[337695321,1725969041193,-500.0,0.00019689,2]
[337695322,1725969041203,-500.0,0.00019689,2]
[337695323,1725969041214,-500.0,0.00019689,2]
[337695324,1725969041224,-500.0,0.00019689,2]
[337695325,1725969041236,-500.0,0.00019689,2]
[337695326,1725969041247,-500.0,0.00019689,2]
[337695327,1725969041258,-500.0,0.00019689,2]
[337695328,1725969041267,-500.0,0.00019689,2]
[337695329,1725969041278,-500.0,0.00019689,2]
[337695330,1725969041288,-500.0,0.00019689,2]
[337695331,1725969041298,-500.0,0.00019689,2]
[337695332,1725969041308,-500.0,0.00019689,2]
[337695333,1725969041319,-531.72853827,0.00019689,2]
[337695334,1725969041330,-500.0,0.00019689,2]
[337695335,1725969041340,-500.0,0.00019689,2]
[337695336,1725969041350,-500.0,0.00019689,2]
[337695337,1725969041361,-500.0,0.00019689,2]
[337695338,1725969041371,-500.0,0.00019689,2]
[337695339,1725969041381,-500.0,0.00019689,2]
[337695340,1725969041391,-500.0,0.00019689,2]
[337695341,1725969041404,-500.0,0.00019689,2]
[337695342,1725969041414,-500.0,0.0001969,2]
[337695343,1725969041425,-500.0,0.0001969,2]
[337695344,1725969041435,-500.0,0.0001969,2]
[337695345,1725969041446,-500.0,0.0001969,2]
[337695346,1725969041456,-500.0,0.0001969,2]
[337695347,1725969041466,-500.0,0.0001969,2]
[337695348,1725969041476,-506.34624746,0.0001969,2]
[337695349,1725969041487,-500.0,0.0001969,2]
[337695350,1725969041497,-500.0,0.0001969,2]
[337695351,1725969041508,-500.0,0.0001969,2]
[337695352,1725969041517,-500.0,0.0001969,2]
[337695353,1725969041529,-500.0,0.0001969,2]
[337695354,1725969041539,-500.0,0.0001969,2]
[337695355,1725969041551,-500.0,0.0001969,2]
[337695356,1725969041561,-500.0,0.0001969,2]
[337695357,1725969041570,-500.0,0.0001969,2]
[337695358,1725969041580,-500.0,0.0001969,2]
[337695359,1725969041589,-500.0,0.0001969,2]
[337695360,1725969041599,-526.42,0.0001969,2]
[337695361,1725969041609,-523.72930768,0.0001969,2]
[337695362,1725969041619,-1105.62,0.0001969,2]
[337695363,1725969041631,-500.0,0.0001969,2]
[337695364,1725969041642,-500.0,0.0001969,2]
[337695365,1725969041651,-500.0,0.0001969,2]
[337695366,1725969041664,-501.15800861,0.0001969,2]
[337695367,1725969041674,-500.0,0.0001969,2]
[337695368,1725969041684,-500.0,0.0001969,2]
[337695369,1725969041694,-527.42535031,0.0001969,2]
[337695370,1725969041713,-500.0,0.0001969,2]
[337695371,1725969041723,-500.0,0.0001969,2]
[337695372,1725969041733,-500.0,0.0001969,2]
[337695373,1725969041743,-266.59,0.0001969,2]
[337695374,1725969041753,-500.0,0.0001969,2]
[337695375,1725969041768,-500.0,0.0001969,2]
[337695376,1725969041781,-500.0,0.0001969,2]
[337695377,1725969041794,-500.0,0.0001969,2]
[337695378,1725969041804,-500.0,0.0001969,2]
[337695379,1725969041814,-500.0,0.0001969,2]
[337695380,1725969041824,-503.82524376,0.0001969,2]
[337695381,1725969041835,-1425.0,0.0001969,2]
[337695382,1725969041844,-500.0,0.0001969,2]
[337695383,1725969041854,-590.02913619,0.0001969,2]
[337695384,1725969041864,-500.0,0.0001969,2]
[337695385,1725969041874,-527.61396848,0.0001969,2]
[337695386,1725969041884,-500.0,0.0001969,2]
[337695387,1725969041895,-500.0,0.0001969,2]
[337695388,1725969041905,-559.65,0.0001969,2]
[337695389,1725969041915,-500.0,0.0001969,2]
[337695390,1725969041925,-500.0,0.0001969,2]
[337695391,1725969041935,-500.0,0.0001969,2]
[337695392,1725969041945,-500.0,0.0001969,2]
[337695393,1725969041956,-500.0,0.0001969,2]
[337695394,1725969041968,-500.0,0.0001969,2]
[337695395,1725969041978,-587.49,0.0001969,2]
[337695396,1725969041987,-500.0,0.0001969,2]
[337695397,1725969041997,-500.0,0.0001969,2]
[337695398,1725969042008,-500.0,0.0001969,2]
[337695399,1725969042019,-500.0,0.0001969,2]
[337695400,1725969042029,-500.0,0.0001969,2]
[337695401,1725969042040,-500.0,0.0001969,2]
[337695402,1725969042051,-500.0,0.0001969,2]
[337695403,1725969042063,-631.37,0.0001969,2]
[337695404,1725969042074,-500.0,0.0001969,2]
[337695405,1725969042083,-500.0,0.0001969,2]
[337695406,1725969042095,-500.0,0.0001969,2]
[337695407,1725969042107,-500.0,0.0001969,2]
[337695408,1725969042312,-500.0,0.0001969,2]
[337695409,1725969042322,-500.0,0.0001969,2]
[337695410,1725969042332,-500.0,0.0001969,2]
[337695411,1725969042342,-690.75,0.0001969,2]
[337695412,1725969042353,-546.98,0.0001969,2]
[337695413,1725969042363,-500.0,0.0001969,2]
[337695414,1725969042373,-500.0,0.0001969,2]
[337695415,1725969042382,-533.04913794,0.0001969,2]
[337695416,1725969042392,-500.0,0.0001969,2]
[337695417,1725969042402,-500.0,0.0001969,2]
[337695418,1725969042412,-500.0,0.0001969,2]
[337695419,1725969042422,-505.96516295,0.0001969,2]
[337695420,1725969042431,-500.0,0.0001969,2]
[337695421,1725969042444,-500.0,0.0001969,2]
[337695422,1725969042454,-571.65,0.0001969,2]
[337695423,1725969042464,-500.0,0.0001969,2]
[337695424,1725969042474,-500.0,0.0001969,2]
[337695425,1725969042484,-191.43348125,0.0001969,2]
[337695426,1725969042493,-500.0,0.0001969,2]
[337695427,1725969042503,-500.0,0.0001969,2]
[337695428,1725969042513,-1430.52,0.0001969,2]
[337695429,1725969042522,-500.0,0.0001969,2]
[337695430,1725969042532,-500.0,0.0001969,2]
[337695431,1725969042541,-24053.62110117,0.00019691,3]
[337695432,1725969042551,-8115.13849194,0.00019691,3]
[337695433,1725969042561,-500.0,0.00019691,2]
[337695434,1725969042571,-500.0,0.00019691,2]
[337695435,1725969042580,-816.28,0.00019691,2]
[337695436,1725969042590,-510.21552978,0.00019691,2]
[337695437,1725969042601,-500.0,0.00019691,2]
[337695438,1725969042611,-500.0,0.00019691,2]
[337695439,1725969042621,-500.0,0.00019691,2]
[337695440,1725969042631,-507.94989365,0.00019691,2]
[337695441,1725969042641,-1427.56,0.00019691,2]
[337695442,1725969042651,-500.82,0.00019691,2]
[337695443,1725969042661,-500.0,0.00019691,2]
[337695444,1725969042673,-1067.34,0.00019691,2]
[337695445,1725969042682,-500.0,0.00019691,2]
[337695446,1725969042692,-1010.46,0.00019691,2]
[337695447,1725969042705,-636.52,0.00019691,2]
[337695448,1725969042714,-1649.27,0.00019691,2]
[337695449,1725969042723,-505.4596711,0.00019691,2]
[337695450,1725969042732,-500.0,0.00019691,2]
[337695451,1725969042742,-534.3982824,0.00019691,2]
[337695452,1725969042753,-820.93,0.00019691,2]
[337695453,1725969042762,-500.0,0.00019691,2]
[337695454,1725969042772,-500.0,0.00019691,2]
[337695455,1725969042782,-500.0,0.00019691,2]
[337695456,1725969042792,-500.0,0.00019691,2]
[337695458,1725969042802,-500.0,0.00019691,2]
[337695461,1725969042812,-500.0,0.00019691,2]
[337695463,1725969042822,-4454.33,0.00019691,2]
[337695465,1725969042831,-500.0,0.00019691,2]
[337695467,1725969042840,-7932.21,0.00019691,2]
[337695469,1725969042849,-500.0,0.00019691,2]
[337695471,1725969042859,-500.0,0.00019691,2]
[337695473,1725969042869,-1851.77,0.00019691,2]
[337695475,1725969042879,-998.07,0.00019691,2]
[337695477,1725969042889,-4110.61,0.00019691,2]
[337695479,1725969042898,-917.35,0.00019691,2]
[337695481,1725969042907,-1320.59,0.00019691,2]
[337695482,1725969042917,-1510.61,0.00019691,2]
[337695483,1725969042926,-1903.29,0.00019691,2]
[337695484,1725969042936,-500.0,0.00019691,2]
[337695485,1725969042945,-500.0,0.00019691,2]
[337695486,1725969042955,-1012.32,0.00019691,2]
[337695487,1725969042965,-354.39716057,0.00019691,2]
[337695488,1725969042974,-504.63005103,0.00019691,2]
[337695489,1725969042984,-788.79,0.00019691,2]
[337695490,1725969042996,-1993.2,0.00019691,2]
[337695491,1725969043007,-500.0,0.00019691,2]
[337695492,1725969043016,-500.0,0.00019691,2]
[337695493,1725969043026,-500.0,0.00019691,2]
[337695494,1725969043038,-1749.96,0.00019691,2]
[337695495,1725969043050,-500.0,0.00019691,2]
[337695496,1725969043059,-500.0,0.00019691,2]
[337695497,1725969043069,-500.0,0.00019691,2]
[337695498,1725969043078,-351.01717132,0.00019691,2]
[337695499,1725969043089,-357.23092367,0.00019691,2]
[337695500,1725969043100,-500.0,0.00019691,2]
[337695502,1725969043111,-500.0,0.00019691,2]
[337695504,1725969043122,-223.32884525,0.00019691,2]
[337695506,1725969043136,-500.0,0.00019691,2]
[337695507,1725969043146,-500.0,0.00019691,2]
[337695508,1725969043156,-500.0,0.00019691,2]
[337695509,1725969043165,-500.0,0.00019691,2]
[337695510,1725969043174,-500.0,0.00019691,2]
[337695512,1725969043185,-500.0,0.00019691,2]
[337695514,1725969043194,-500.0,0.00019691,2]
[337695516,1725969043205,-1560.48,0.00019691,2]
[337695518,1725969043215,-1378.61,0.00019691,2]
[337695519,1725969043226,-500.0,0.00019691,2]
[337695521,1725969043235,-250.0,0.00019691,2]
[337695523,1725969043245,-500.0,0.00019691,2]
[337695524,1725969043255,-500.0,0.00019691,2]
[337695526,1725969043266,-1768.98,0.00019691,2]
[337695528,1725969043276,-500.0,0.00019691,2]
[337695530,1725969043286,-755.13,0.00019691,2]
[337695532,1725969043296,-1663.2,0.00019691,2]
[337695534,1725969043306,-582.46090702,0.00019691,2]
[337695538,1725969046291,-500.0,0.0001969,2]
[337695539,1725969046301,-163.99201304,0.0001969,2]
[337695541,1725969046474,-283.88572216,0.0001969,2]
[337695701,1725970232744,-342.53835,0.00017808,2]
[337695703,1725970232755,-91.36872799,0.00018371,2]
[337695705,1725970232766,-75.29793801,0.00018371,2]
[337695707,1725970232776,-183.06925,0.00018392,2]
[337695709,1725970232785,-183.06925,0.00018423,2]
[337695711,1725970232795,-183.06925,0.00018453,2]
[337695713,1725970232804,-136.39831199,0.00018484,2]
[337695715,1725970232816,-46.67093801,0.00018484,2]